bitfinex/quotes_SOLUSD_20220119
["timestamp","ask_amount","ask_price","bid_price","bid_amount"]
[1642616675260,0.25,137.08,137.03,40.2575]
[1642616675459,10.9462,137.09,137.03,40.2575]
[1642616675660,0.25,137.08,137.03,40.2575]
[1642616676259,10.9462,137.09,137.03,40.2575]
[1642616676860,10.9451,137.11,137.03,40.2575]
[1642616677761,0.25,137.1,137.03,40.2575]
[1642616678364,0.25,137.11,137.03,40.2575]
[1642616678964,0.25,137.11,137.04,0.25]
[1642616679563,10.9461,137.09,137.03,34.2575]
[1642616679765,0.25,137.08,137.03,34.2575]
[1642616680565,0.25,137.08,137.03,73.37173167]
[1642616680966,2.903,137.13,137.04,0.25]
[1642616681176,2.903,137.13,137.05,10.51]
[1642616681367,4.77663132,137.18,137.05,35.0671]
[1642616681565,4.77263132,137.19,137.06,6.25]
[1642616681768,4.77263132,137.19,137.06,16.76]
[1642616682267,10.9394,137.18,137.08,54.64727975]
[1642616682468,10.9394,137.18,137.09,23.9807]
[1642616682673,10.9394,137.18,137.09,24.2307]
[1642616683070,10.9394,137.18,137.08,10.9393]
[1642616683270,12.76652602,137.18,137.06,10.51]
[1642616683471,10.9427,137.14,137.06,10.51]
[1642616683871,0.25,137.13,137.03,38.4006]
[1642616684072,3.166,137.13,137.04,0.25]
[1642616684272,0.25,137.13,137.04,0.25]
[1642616684599,10.9438,137.12,137.03,46.4281]
[1642616685775,0.25,137.11,137.03,46.4281]
[1642616685972,10.9438,137.12,137.03,46.4281]
[1642616686175,0.25,137.11,137.03,46.4281]
[1642616686673,0.25,137.11,137.04,0.25]
[1642616686873,0.25,137.11,137.04,10.76]
[1642616688876,0.25,137.11,137.04,10.51]
[1642616689080,11.1945,137.11,137.04,10.51]
[1642616690279,2.912,137.1,137.04,10.51]
[1642616690480,10.9469,137.09,137.03,24.9746]
[1642616690679,11.1969,137.09,137.03,24.9746]
[1642616691080,11.1969,137.09,137.01,25.4768]
[1642616691379,11.1969,137.09,137.01,2.916]
[1642616691587,2.911,137.08,137.01,2.916]
[1642616691781,0.25,137.07,137.01,2.916]
[1642616691978,13.8618,137.06,137.01,2.916]
[1642616692215,73.22,137.05,137.01,2.916]
[1642616692413,2.91,137.04,137.01,2.916]
[1642616692616,76.13,137.05,137.01,2.916]
[1642616692816,73.22,137.05,137.01,2.916]
[1642616693015,0.25,137.05,137.01,2.916]
[1642616693411,10.9515,137.04,137.01,2.916]
[1642616693614,0.25,137.05,137.01,2.916]
[1642616693615,6.06439994,137.03,137.01,2.916]
[1642616693812,2.91,137.06,137.01,2.916]
[1642616694214,0.25,137.05,137.01,2.916]
[1642616695417,10.9514,137.04,137.01,2.916]
[1642616695614,6.06439994,137.03,137.01,2.916]
[1642616695815,0.25,137.02,137.01,2.916]
[1642616696014,112.386,137.06,137.01,2.916]
[1642616696413,39.416,137.06,137.01,2.916]
[1642616696619,35.3316,137.09,137.01,2.916]
[1642616696620,2.912,137.08,137.01,2.916]
[1642616697515,10.9481,137.07,137.01,2.916]
[1642616697715,10.9481,137.07,137.01,51.60447267]
[1642616698120,10.9481,137.07,137.01,2.916]
[1642616698318,0.25,137.06,137.01,2.916]
[1642616698518,0.25,137.06,136.97,26.6655]
[1642616698717,0.25,137.06,136.98,0.25]
[1642616699121,0.25,137.06,136.98,46.24675199]
[1642616699319,0.25,137.06,136.99,24.422]
[1642616699520,0.25,137.06,136.99,35.369]
[1642616700020,10.9467,137.09,136.99,35.369]
[1642616700223,10.9467,137.09,137.0,3.169]
[1642616700623,39.406,137.12,137.0,14.1154]
[1642616700823,2.916,137.13,137.01,33.063]
[1642616701021,2.916,137.13,137.01,39.063]
[1642616701323,29.48743132,137.17,137.03,43.98801361]
[1642616701624,2.916,137.17,137.04,66.0873]
[1642616701821,72.97,137.16,137.04,63.1713]
[1642616702022,2.912,137.15,137.04,16.51]
[1642616702221,72.97,137.14,137.04,10.51]
[1642616702421,2.908,137.13,137.04,10.51]
[1642616702622,10.9449,137.11,137.04,10.51]
[1642616703226,0.25,137.1,137.04,10.51]
[1642616704028,10.9449,137.11,137.04,10.51]
[1642616704730,2.908,137.13,137.05,0.25]
[1642616704929,2.912,137.14,137.05,0.25]
[1642616705132,41.27133132,137.17,137.05,0.25]
[1642616705331,39.3927,137.17,137.05,25.0461]
[1642616705732,0.25,137.16,137.05,25.0461]
[1642616705933,2.916,137.15,137.05,35.5561]
[1642616706133,10.9422,137.14,137.05,46.4984]
[1642616706338,11.1922,137.14,137.05,46.4984]
[1642616710036,2.916,137.15,137.05,46.4984]
[1642616710238,1.87863132,137.18,137.09,10.938]
[1642616710436,1.87863132,137.18,137.09,16.323]
[1642616710637,1.87863132,137.2,137.1,0.25]
[1642616710864,4.78663132,137.22,137.1,73.22]
[1642616711067,1.87863132,137.23,137.11,24.276]
[1642616711366,2.9,137.22,137.12,68.15489325]
[1642616711767,2.9,137.22,137.12,24.7711]
[1642616711966,0.25,137.21,137.12,35.7076]
[1642616713373,11.1865,137.21,137.12,24.7711]
[1642616714069,84.1565,137.21,137.12,24.7711]
[1642616714274,11.1865,137.21,137.12,24.7711]
[1642616715372,11.1865,137.21,137.12,24.5211]
[1642616716173,11.1865,137.21,137.13,0.25]
[1642616716373,11.1865,137.21,137.12,24.5211]
[1642616716574,74.79712602,137.2,137.11,24.276]
[1642616716774,10.9397,137.18,137.11,24.276]
[1642616717174,0.25,137.17,137.07,13.426]
[1642616717374,2.166,137.17,137.07,10.51]
[1642616717575,2.166,137.17,137.08,6.0]
[1642616717774,2.166,137.17,137.07,34.3463]
[1642616718579,10.9407,137.16,137.08,0.25]
[1642616719277,10.9407,137.16,137.08,10.76]
[1642616719482,10.9407,137.16,137.08,21.7001]
[1642616720279,2.166,137.17,137.08,94.6701]
[1642616721580,2.166,137.17,137.08,21.7001]
[1642616721981,2.066,137.17,137.09,23.6031]
[1642616722212,2.066,137.17,137.1,10.76]
[1642616723413,2.066,137.17,137.1,21.6985]
[1642616724614,2.066,137.17,137.11,41.91812136]
[1642616724814,2.066,137.17,137.12,0.25]
[1642616726017,2.066,137.17,137.12,11.1869]
[1642616727516,2.066,137.17,137.12,0.25]
[1642616728218,2.066,137.17,137.11,23.983]
[1642616728517,2.066,137.17,137.11,10.51]
[1642616729318,2.066,137.17,137.09,23.4178]
[1642616729518,13.0057,137.17,137.1,0.25]
[1642616730621,13.0057,137.17,137.09,23.4178]
[1642616732226,0.25,137.16,137.09,23.4178]
[1642616732425,10.9416,137.15,137.09,23.4178]
[1642616732632,10.9416,137.15,137.06,24.6686]
[1642616734727,10.9416,137.15,137.06,49.1922]
[1642616735128,12.82023132,137.15,137.06,49.1922]
[1642616735927,0.25,137.14,137.06,49.1922]
[1642616736127,10.9437,137.12,137.06,49.1922]
[1642616737132,11.1926,137.14,137.06,49.1922]
[1642616737336,10.9426,137.14,137.07,0.25]
[1642616737534,5.249318,137.17,137.07,0.25]
[1642616738433,10.9408,137.16,137.06,49.1922]
[1642616738633,12.81943132,137.16,137.07,0.25]
[1642616738832,10.9408,137.16,137.07,0.25]
[1642616739635,12.81943132,137.16,137.07,0.25]
[1642616740433,14.64655734,137.16,137.07,0.25]
[1642616741034,11.1914,137.15,137.07,0.25]
[1642616741435,72.97,137.13,137.02,2.06272135]
[1642616741641,133.19712602,137.06,136.93,0.36464649]
[1642616741837,131.37,137.03,136.95,1.69938519]
[1642616742038,10.9593,136.98,136.86,4.12797038]
[1642616742238,10.9593,136.98,136.83,21.39307639]
[1642616742239,13.43,136.97,136.85,8.25766763]
[1642616742438,47.0412,136.96,136.84,5.473076]
[1642616742637,51.78832602,136.96,136.83,2.92]
[1642616742838,49.9612,136.96,136.8,7.04997038]
[1642616743039,1.82712602,136.95,136.81,4.13178619]
[1642616743239,21.4694,136.94,136.82,2.922]
[1642616743440,10.51,136.94,136.82,45.34544307]
[1642616743739,10.51,136.94,136.83,2.922]
[1642616744141,12.33712602,136.94,136.83,2.922]
[1642616744538,10.51,136.94,136.83,2.922]
[1642616744739,21.4681,136.94,136.82,45.34544307]
[1642616745039,4.74912602,136.93,136.79,130.5404]
[1642616745238,4.74912602,136.93,136.79,127.6184]
[1642616745239,10.51,136.92,136.79,127.6184]
[1642616745540,2.922,136.91,136.79,49.2808]
[1642616745739,10.51,136.9,136.79,49.2808]
[1642616745939,23.29922602,136.9,136.79,49.2808]
[1642616746238,2.923,136.89,136.79,49.2808]
[1642616746439,10.51,136.9,136.79,49.2808]
[1642616746839,0.25,136.89,136.79,49.2808]
[1642616747545,0.25,136.89,136.81,45.2859917]
[1642616747943,0.25,136.89,136.82,6.0]
[1642616748144,10.51,136.92,136.82,6.25]
[1642616749374,10.51,136.92,136.82,9.172]
[1642616749773,2.922,136.97,136.82,9.432]
[1642616749974,2.922,136.97,136.82,44.0323]
[1642616750185,2.922,136.97,136.82,117.0023]
[1642616750575,2.922,136.97,136.82,44.0323]
[1642616750780,10.9571,136.96,136.82,54.9894]
[1642616751175,0.25,136.95,136.82,44.0323]
[1642616751377,3.172,136.95,136.82,44.0323]
[1642616751576,2.922,136.96,136.82,44.0323]
[1642616751782,10.9582,136.94,136.83,72.97]
[1642616751976,2.922,136.93,136.84,37.23849221]
[1642616752180,2.922,136.93,136.84,43.48849221]
[1642616753780,2.922,136.93,136.84,116.45849221]
[1642616753981,10.9582,136.94,136.84,116.45849221]
[1642616756686,13.8791,136.96,136.84,116.45849221]
[1642616757083,13.8791,136.96,136.85,1.25652587]
[1642616757283,13.8791,136.96,136.86,0.25]
[1642616757485,13.8791,136.96,136.84,116.45849221]
[1642616758485,15.70622602,136.96,136.84,116.45849221]
[1642616758685,26.21622602,136.96,136.84,116.45849221]
[1642616758884,26.21622602,136.96,136.84,110.45849221]
[1642616760488,24.3891,136.96,136.85,6.0]
[1642616760887,21.4671,136.96,136.87,40.59160194]
[1642616761688,21.4671,136.96,136.88,0.25]
[1642616762088,0.25,136.95,136.87,40.59160194]
[1642616762490,2.92,136.97,136.88,0.25]
[1642616762689,10.9553,136.98,136.88,0.25]
[1642616762989,10.9553,136.98,136.88,6.25]
[1642616763189,10.9553,136.98,136.88,0.25]
[1642616763394,23.29242602,136.98,136.88,0.25]
[1642616763694,0.25,136.97,136.88,0.25]
[1642616763893,10.9576,136.95,136.88,0.25]
[1642616764495,10.9576,136.95,136.87,40.59160194]
[1642616764891,10.9576,136.95,136.86,23.2488]
[1642616765091,2.92,136.94,136.86,23.2488]
[1642616765290,13.8781,136.94,136.86,23.2488]
[1642616765492,10.9581,136.94,136.86,23.2488]
[1642616765790,0.25,136.93,136.84,34.1954]
[1642616765991,0.25,136.93,136.85,0.25]
[1642616766393,39.4499,136.97,136.85,0.25]
[1642616766694,39.4499,136.97,136.85,6.25]
[1642616767322,10.959,136.93,136.85,6.25]
[1642616767728,0.25,136.92,136.85,6.25]
[1642616768127,39.4553,136.95,136.85,0.25]
[1642616768324,0.25,136.94,136.85,0.25]
[1642616768532,2.92,136.93,136.85,0.25]
[1642616768826,13.682,136.94,136.84,46.7257]
[1642616769025,2.922,136.92,136.84,46.7257]
[1642616769226,2.922,136.93,136.84,46.7257]
[1642616769426,10.9603,136.92,136.84,46.7257]
[1642616769628,10.9603,136.92,136.82,41.65616431]
[1642616769825,2.922,136.91,136.82,41.65616431]
[1642616770027,2.922,136.91,136.83,0.25]
[1642616770627,2.922,136.93,136.83,0.25]
[1642616771232,10.9606,136.91,136.83,0.25]
[1642616771433,10.9606,136.91,136.82,0.25]
[1642616771629,10.9606,136.91,136.81,6.25]
[1642616771836,13.8826,136.91,136.81,6.25]
[1642616772231,13.8826,136.91,136.81,38.1364301]
[1642616772730,0.25,136.9,136.81,38.1364301]
[1642616772929,10.9626,136.89,136.81,38.1364301]
[1642616774131,10.9626,136.89,136.81,0.25]
[1642616774330,10.9626,136.89,136.8,0.25]
[1642616774531,10.9626,136.89,136.8,6.0]
[1642616775831,13.8856,136.89,136.8,6.0]
[1642616776132,13.8856,136.89,136.81,0.25]
[1642616777336,10.9626,136.89,136.81,0.25]
[1642616780039,10.9626,136.89,136.8,6.0]
[1642616780242,3.173,136.88,136.81,0.25]
[1642616780442,14.136,136.88,136.81,0.25]
[1642616780637,11.213,136.88,136.81,0.25]
[1642616782139,11.213,136.88,136.8,6.0]
[1642616782340,2.923,136.87,136.76,25.4805]
[1642616782642,10.9667,136.84,136.76,25.4805]
[1642616782839,10.9667,136.84,136.76,2.923]
[1642616783740,0.25,136.83,136.77,0.25]
[1642616783940,11.2168,136.83,136.77,0.25]
[1642616784141,10.9668,136.83,136.77,0.25]
[1642616784740,10.9668,136.83,136.77,6.25]
[1642616784940,10.9657,136.85,136.77,0.25]
[1642616785144,10.9657,136.85,136.78,41.75026449]
[1642616785548,10.9657,136.85,136.79,0.25]
[1642616785741,10.9657,136.85,136.78,41.75026449]
[1642616785942,10.9657,136.85,136.79,0.25]
[1642616786841,2.923,136.86,136.79,0.25]
[1642616787042,21.4743,136.87,136.79,0.25]
[1642616787244,10.9643,136.87,136.79,0.25]
[1642616787843,2.923,136.88,136.79,6.552]
[1642616788043,13.433,136.91,136.8,6.0]
[1642616788246,10.51,136.91,136.81,35.57895053]
[1642616789444,21.471,136.91,136.81,35.57895053]
[1642616789643,2.922,136.93,136.81,43.21395053]
[1642616789845,2.922,136.94,136.82,26.88752587]
[1642616790046,25.4597,136.95,136.83,72.97]
[1642616790249,25.4597,136.95,136.84,69.24816155]
[1642616790445,25.4597,136.95,136.84,75.24816155]
[1642616790645,25.4597,136.95,136.85,0.25]
[1642616791546,36.4176,136.95,136.85,0.25]
[1642616792446,46.9276,136.95,136.85,0.25]
[1642616792647,46.9276,136.95,136.84,75.24816155]
[1642616792851,48.75472602,136.95,136.84,23.6369]
[1642616793047,72.97,136.94,136.82,2.922]
[1642616793248,10.9622,136.91,136.83,0.25]
[1642616793449,2.922,136.9,136.83,0.25]
[1642616793848,2.922,136.92,136.83,0.25]
[1642616794246,2.922,136.92,136.81,39.26935819]
[1642616794445,10.9622,136.89,136.81,39.26935819]
[1642616794650,10.9622,136.89,136.82,0.25]
[1642616795649,11.211,136.91,136.82,0.25]
[1642616795949,10.961,136.91,136.82,0.25]
[1642616799352,10.961,136.91,136.81,42.19135819]
[1642616799553,10.9629,136.88,136.8,24.4046]
[1642616799753,10.9629,136.88,136.81,0.25]
[1642616800355,10.9629,136.88,136.8,24.4046]
[1642616800558,10.9629,136.88,136.8,72.87790082]
[1642616801782,10.9629,136.88,136.81,0.25]
[1642616802183,10.9629,136.88,136.8,24.4046]
[1642616802383,10.9629,136.88,136.81,0.25]
[1642616803984,10.9619,136.9,136.81,0.25]
[1642616804388,34.2533,136.92,136.81,0.25]
[1642616804587,10.51,136.92,136.81,7.50652587]
[1642616804789,10.51,136.92,136.82,34.78147983]
[1642616804988,10.51,136.92,136.82,66.38047983]
[1642616805186,10.51,136.92,136.83,0.25]
[1642616805488,21.4702,136.92,136.82,58.41147983]
[1642616805689,2.922,136.91,136.83,0.25]
[1642616805890,10.51,136.92,136.83,7.292]
[1642616806287,35.9697,136.95,136.83,10.214]
[1642616807087,35.9697,136.95,136.84,22.7369]
[1642616807388,35.9697,136.95,136.85,44.01553171]
[1642616807588,10.9594,136.93,136.85,44.01553171]
[1642616809991,10.9594,136.93,136.85,0.25]
[1642616811490,10.9594,136.93,136.84,21.9869]
[1642616812790,14.1322,136.92,136.84,21.9869]
[1642616812990,11.2102,136.92,136.84,21.9869]
[1642616814692,11.2102,136.92,136.85,0.25]
[1642616814992,11.2102,136.92,136.84,21.9869]
[1642616815194,10.9621,136.89,136.79,99.6592]
[1642616815393,10.9621,136.89,136.82,0.25]
[1642616816195,0.25,136.88,136.82,0.25]
[1642616816596,0.25,136.88,136.81,0.25]
[1642616816796,11.2128,136.88,136.81,0.25]
[1642616818621,2.923,136.91,136.81,0.25]
[1642616818802,2.922,136.94,136.82,13.432]
[1642616819001,3.56425919,136.95,136.82,13.432]
[1642616819002,3.56425919,136.98,136.83,53.65895139]
[1642616819201,3.56425919,136.98,136.84,13.43]
[1642616819402,3.56425919,136.99,136.84,150.889]
[1642616819639,3.56425919,137.0,136.86,36.62829479]
[1642616819800,3.56425919,137.02,136.88,36.502]
[1642616820000,3.56425919,137.04,136.9,46.9144064]
[1642616820199,6.48425919,137.04,136.91,13.68]
[1642616820401,3.56425919,137.04,136.91,26.75]
[1642616820600,7.54528139,137.04,136.91,26.75]
[1642616820801,6.48425919,137.05,136.91,75.8493]
[1642616821004,7.51575089,137.04,136.91,72.9293]
[1642616821203,2.92,137.03,136.91,72.9293]
[1642616821401,13.8709,137.03,136.91,72.9293]
[1642616821603,0.25,137.02,136.91,59.8593]
[1642616821806,2.92,137.01,136.9,2.92]
[1642616822001,6.48425919,137.01,136.9,2.92]
[1642616822201,0.25,137.0,136.9,2.92]
[1642616822402,2.92,136.99,136.9,2.92]
[1642616822803,0.25,136.98,136.9,2.92]
[1642616823005,2.92,136.97,136.9,2.92]
[1642616823204,0.25,136.96,136.9,2.92]
[1642616823809,2.92,136.95,136.9,2.92]
[1642616824214,0.25,136.94,136.9,2.92]
[1642616824415,3.17,136.94,136.9,2.92]
[1642616824815,0.25,136.94,136.9,2.92]
[1642616825015,2.92,136.96,136.9,2.92]
[1642616825215,0.25,136.95,136.89,10.51]
[1642616825418,0.25,136.95,136.89,55.32200013]
[1642616825616,0.25,136.95,136.89,10.76]
[1642616825817,0.25,136.95,136.89,10.51]
[1642616826220,0.25,136.98,136.89,10.51]
[1642616826415,2.92,136.97,136.89,10.51]
[1642616826816,0.25,136.96,136.89,10.51]
[1642616827447,11.2065,136.96,136.89,10.51]
[1642616831050,11.2065,136.96,136.88,24.8502]
[1642616831249,10.9601,136.92,136.85,33.0863]
[1642616831452,17.2551,136.92,136.85,22.5763]
[1642616832051,17.2551,136.92,136.86,48.01698018]
[1642616832450,0.25,136.91,136.86,48.01698018]
[1642616832649,10.9601,136.92,136.86,48.01698018]
[1642616833249,0.25,136.91,136.86,48.01698018]
[1642616833850,10.9601,136.92,136.86,48.01698018]
[1642616834753,0.25,136.91,136.86,48.01698018]
[1642616835254,0.25,136.91,136.85,22.5763]
[1642616836355,11.2104,136.91,136.85,22.5763]
[1642616837258,11.2104,136.91,136.82,44.91890329]
[1642616837460,11.2104,136.91,136.84,0.25]
[1642616838687,11.2104,136.91,136.83,0.25]
[1642616838890,0.25,136.91,136.83,0.25]
[1642616839085,0.25,136.91,136.83,25.2449]
[1642616839290,0.25,136.93,136.83,25.2449]
[1642616840087,0.25,136.93,136.83,98.2149]
[1642616840492,0.25,136.93,136.83,35.7549]
[1642616840887,59.4968,136.95,136.83,108.7249]
[1642616840888,0.25,136.94,136.83,108.7249]
[1642616841187,3.172,136.94,136.83,108.7249]
[1642616841589,14.1307,136.94,136.83,35.7549]
[1642616843189,11.2087,136.94,136.83,38.6769]
[1642616844990,11.2087,136.94,136.83,111.6469]
[1642616846493,11.2087,136.94,136.83,38.6769]
[1642616846691,11.2087,136.94,136.83,25.2449]
[1642616847095,84.1787,136.94,136.83,24.9949]
[1642616847291,84.1787,136.94,136.82,47.84090329]
[1642616847491,10.9621,136.9,136.82,47.84090329]
[1642616847692,0.25,136.89,136.82,47.84090329]
[1642616848292,0.25,136.89,136.83,0.25]
[1642616848891,0.25,136.92,136.82,2.922]
[1642616849092,18.9061,136.89,136.82,2.922]
[1642616849293,3.172,136.88,136.81,24.9679]
[1642616850295,10.9638,136.87,136.81,24.9679]
[1642616850698,0.25,136.86,136.81,24.9679]
[1642616850896,10.9638,136.87,136.81,24.9679]
[1642616851096,0.25,136.86,136.81,24.9679]
[1642616851998,0.25,136.86,136.79,47.03765986]
[1642616852202,0.25,136.86,136.8,0.25]
[1642616852403,0.25,136.86,136.78,58.5899]
[1642616852699,11.2144,136.86,136.79,0.25]
[1642616853401,11.2144,136.86,136.79,43.25070726]
[1642616856103,10.9635,136.88,136.79,43.25070726]
[1642616856305,2.923,136.9,136.8,10.51]
[1642616856505,0.25,136.87,136.82,36.24469021]
[1642616857604,1.82712602,136.82,136.76,0.00797038]
[1642616857803,1.82712602,136.82,136.74,0.02890342]
[1642616857804,2.97109658,136.74,136.66,0.07962902]
[1642616858004,45.93060947,136.72,136.66,0.07962902]
[1642616858605,0.25,136.71,136.66,0.07962902]
[1642616859206,45.93060947,136.72,136.66,0.07962902]
[1642616860504,45.93060947,136.72,136.66,6.07962902]
[1642616861407,45.93060947,136.72,136.67,2.926]
[1642616861604,45.93060947,136.72,136.68,41.43883497]
[1642616862206,45.93060947,136.72,136.67,2.926]
[1642616863407,10.51,136.76,136.68,35.10971201]
[1642616863610,10.51,136.76,136.68,41.10971201]
[1642616863808,10.51,136.79,136.69,0.25]
[1642616864009,2.924,136.78,136.69,0.25]
[1642616864209,10.9718,136.77,136.69,0.25]
[1642616866009,0.25,136.76,136.69,0.25]
[1642616867012,0.25,136.76,136.68,35.10971201]
[1642616868212,0.25,136.76,136.69,0.25]
[1642616868811,0.25,136.76,136.68,35.10971201]
[1642616869212,13.8958,136.77,136.68,35.10971201]
[1642616869412,2.924,136.8,136.69,72.97]
[1642616869613,13.434,136.82,136.69,102.7972]
[1642616869811,10.51,136.82,136.69,102.7972]
[1642616870013,2.924,136.81,136.69,102.7972]
[1642616870211,2.924,136.81,136.7,0.25]
[1642616871015,10.9704,136.79,136.7,0.25]
[1642616871213,3.174,136.78,136.7,0.25]
[1642616872416,0.25,136.78,136.7,0.25]
[1642616873018,2.924,136.79,136.7,6.25]
[1642616873219,10.969,136.81,136.71,43.1322723]
[1642616873720,0.25,136.8,136.72,0.25]
[1642616874823,13.8913,136.83,136.72,0.25]
[1642616875823,0.25,136.82,136.72,0.25]
[1642616876321,13.8913,136.83,136.72,0.25]
[1642616877824,10.9673,136.83,136.72,0.25]
[1642616878023,10.9673,136.83,136.72,6.25]
[1642616878223,0.25,136.82,136.72,6.25]
[1642616878424,11.2177,136.82,136.72,6.0]
[1642616879754,11.2177,136.82,136.73,0.25]
[1642616879954,13.8926,136.81,136.73,0.25]
[1642616880359,0.25,136.8,136.72,0.25]
[1642616882759,13.8915,136.83,136.72,0.25]
[1642616883063,24.4015,136.83,136.72,0.25]
[1642616883262,0.25,136.82,136.72,0.25]
[1642616884059,0.25,136.82,136.72,6.25]
[1642616884260,0.25,136.82,136.72,0.25]
[1642616884460,2.924,136.81,136.72,0.25]
[1642616885160,0.25,136.8,136.72,0.25]
[1642616885761,3.174,136.8,136.72,0.25]
[1642616885960,0.25,136.8,136.72,0.25]
[1642616886361,0.25,136.8,136.71,47.9672]
[1642616886561,2.924,136.79,136.71,47.9672]
[1642616886762,11.2208,136.78,136.71,47.9672]
[1642616887262,10.9708,136.78,136.71,47.9672]
[1642616887463,10.9708,136.78,136.69,49.89280247]
[1642616887665,0.25,136.77,136.7,0.25]
[1642616888066,10.9708,136.78,136.7,0.25]
[1642616888666,0.25,136.77,136.7,0.25]
[1642616888864,11.2217,136.77,136.7,0.25]
[1642616889266,11.2217,136.77,136.69,39.38280247]
[1642616890165,11.2217,136.77,136.7,0.25]
[1642616890765,11.2217,136.77,136.68,25.95668766]
[1642616890965,11.2217,136.77,136.67,2.05768766]
[1642616891166,2.924,136.76,136.66,2.13731668]
[1642616891366,2.924,136.76,136.66,44.19370062]
[1642616891367,10.9743,136.74,136.66,44.19370062]
[1642616892168,10.9743,136.74,136.67,0.25]
[1642616892969,0.25,136.73,136.66,44.19370062]
[1642616893172,10.9743,136.74,136.67,0.25]
[1642616893371,10.9728,136.76,136.67,2.30768766]
[1642616893570,10.9728,136.76,136.67,25.44928766]
[1642616893868,0.25,136.75,136.67,25.44928766]
[1642616894668,10.9728,136.76,136.67,25.44928766]
[1642616895171,10.9728,136.76,136.68,2.05768766]
[1642616895370,10.9728,136.76,136.69,41.98524896]
[1642616895569,33.6282,136.78,136.69,42.23524896]
[1642616895772,0.25,136.77,136.69,42.23524896]
[1642616896672,0.25,136.77,136.69,41.98524896]
[1642616896873,0.25,136.78,136.69,41.98524896]
[1642616897070,2.924,136.77,136.69,41.98524896]
[1642616897275,11.2232,136.76,136.69,41.98524896]
[1642616898274,11.2232,136.76,136.68,2.05768766]
[1642616898473,11.2232,136.76,136.67,25.19928766]
[1642616898672,11.2232,136.76,136.68,0.25]
[1642616898673,10.9732,136.76,136.68,0.25]
[1642616899275,10.9732,136.76,136.68,39.94542823]
[1642616899680,10.9732,136.76,136.68,42.00311589]
[1642616900478,0.25,136.75,136.68,41.75311589]
[1642616900677,0.25,136.75,136.69,0.25]
[1642616901279,11.2234,136.75,136.68,41.75311589]
[1642616901478,11.2234,136.75,136.68,39.69542823]
[1642616902181,11.2234,136.75,136.69,0.25]
[1642616902781,10.9734,136.75,136.69,0.25]
[1642616902982,10.9723,136.77,136.69,0.25]
[1642616903384,10.9723,136.77,136.69,2.30768766]
[1642616903583,10.9723,136.77,136.69,0.25]
[1642616903781,0.25,136.76,136.69,0.25]
[1642616903983,10.9723,136.77,136.69,0.25]
[1642616904186,10.9723,136.77,136.68,41.75311589]
[1642616904382,10.9723,136.77,136.69,0.25]
[1642616905784,10.9723,136.77,136.69,2.30768766]
[1642616906016,10.9723,136.77,136.69,0.25]
[1642616906214,10.4723,136.77,136.69,0.25]